Cogmind - Beta 15 @@@ ROGUE MODE // 2025.07.02 @ 22:10:51 Player: BlobtheGreat Result: Destroyed by G-50 Soldier with Heavy Laser Performance ------------- Evolutions (5) 2500 Regions Visited (17) 3400 Robots Destroyed (247) 1235 Value Destroyed (11761) 11761 Prototype IDs (32) 640 Alien Tech Used (0) 0 Bonus (7254) 7254 TOTAL SCORE: 26790 Bonus ------- High Alert Combat Kills 1243 Follower Combat Kills 522 Entered Garrisons 1200 Used RIF Installer 4000 Aligned with FarCom 300 Friendly Fire -11 Cogmind --------- Core Integrity 0/1000 Matter 240/300 Energy 100/100 System Corruption 23% Temperature Cool (9) Movement Core (750) Ox14 Location -5/Factory Parts ------- > --- POWER (2) -------- (None) > --- PROPULSION (6) --- (None) > --- UTILITY (6) ------ High-capacity Storage Unit Relay Coupler [NC] (29) Relay Coupler [Swarmer] (29) > --- WEAPON (3) ------- Power Sword > --- INVENTORY (20) --- Backup Power I Neutrino Core Micro Fission Core Medium Reactive Plating Authchip [R/Combat] Authchip [R/Combat] Authchip [R/Combat] Authchip [R/Combat] Relay Coupler [NC] (30) Relay Coupler [Cutter] (22) Relay Coupler [Sentry] (26) Relay Coupler [Sentry] (27) Relay Coupler [Hunter] (17) Relay Coupler [Hunter] (15) Relay Coupler [Hunter] (19) Peak State ------------ > --- POWER ------------ Micro Fission Core Micro Fission Core > --- PROPULSION ------- Improved Airjet Improved Gravmag System Combat Airjet Combat Airjet Combat Airjet Combat Airjet > --- UTILITY ---------- Advanced Cooling System High-capacity Storage Unit Improved Light Armor Plating Advanced System Shield Relay Coupler [NC] Relay Coupler [Specialist] > --- WEAPON ----------- Gatling Laser Force Rifle Power Sword > --- INVENTORY -------- Improved Deuterium Engine Micro Fission Core Cryofiber Web Improved Cooling System Layered Medium Armor Plating Medium Reactive Plating Authchip [R/Combat] Authchip [R/Combat] Relay Coupler [Swarmer] Relay Coupler [Cutter] Relay Coupler [Grunt] Relay Coupler [Sentry] Relay Coupler [Hunter] Gatling Laser Gatling Laser Long-range Proton Cannon Heavy Plasma Cannon Heavy Plasma Cannon Long-range Missile Launcher Remote Datajack [Rating: 87] Favorites ----------- Power Micro Fission Core Engine Improved Deuterium Engine Power Core Micro Fission Core Propulsion Medium Treads Treads Medium Treads Leg Carbon-fiber Leg Wheel Compact Wheel Hover Unit Combat Airjet Flight Unit Improved VTOL Module Utility High-capacity Storage Unit Device Cooling System Storage High-capacity Storage Unit Hackware Hacking Suite Protection Hardened Medium Armor Plating Weapon Precision Beam Rifle Energy Gun Precision Beam Rifle Energy Cannon Heavy Plasma Cannon Ballistic Gun Assault Rifle Ballistic Cannon AWS/Autocannon Launcher Long-range Missile Launcher Special Weapon Remote Datajack Impact Weapon Power Maul Slashing Weapon Power Sword Special Melee Weapon Improved Datajack Build | -11 -10 -10 -10 -9 -8 -8 -8 -8 -7 -7 -7 -7 -6 -6 -5 -5 -5 ------- Run | Yrd Mat Min Exi Min Mat Gar Mat Gar Fac Gar Fac Gar Fac Gar Fac Gar Fac Slots Evolved 10 | . . . . . 4 . . . 2 . . . 2 . 2 . . Power 1 | . . . . . . . . . . . . . 1 . . . . Propulsion 4 | . . . . . 1 . . . 1 . . . 1 . 1 . . Utility 4 | . . . . . 2 . . . 1 . . . . . 1 . . Weapon 1 | . . . . . 1 . . . . . . . . . . . . Parts Attached 132 | 7 9 3 . 5 18 7 4 . 7 2 . 10 21 14 7 12 6 Power 15 | 1 1 1 . . 1 2 . . . . . 1 3 1 2 2 . Engine 8 | 1 1 1 . . . 1 . . . . . 1 2 1 . . . Core 7 | . . . . . 1 1 . . . . . . 1 . 2 2 . Reactor . | . . . . . . . . . . . . . . . . . . Propulsion 38 | 2 1 . . 4 2 2 1 . 1 . . 4 9 6 1 2 3 Treads 20 | 2 . . . 3 2 2 1 . 1 . . 4 2 . . 2 1 Leg 3 | . . . . . . . . . . . . . . 2 . . 1 Wheel 3 | . 1 . . 1 . . . . . . . . 1 . . . . Hover 11 | . . . . . . . . . . . . . 5 4 1 . 1 Flight 1 | . . . . . . . . . . . . . 1 . . . . Utility 39 | 2 4 1 . . 4 3 1 . 2 1 . 2 6 2 2 7 2 Device 13 | 1 1 . . . 2 1 . . 1 . . . 3 1 . 2 1 Storage 5 | 1 2 . . . 1 . 1 . . . . . . . . . . Processor . | . . . . . . . . . . . . . . . . . . Hackware 10 | . . . . . 1 . . . 1 . . . 2 . 2 3 1 Protection 11 | . 1 1 . . . 2 . . . 1 . 2 1 1 . 2 . Artifact . | . . . . . . . . . . . . . . . . . . Weapon 40 | 2 3 1 . 1 11 . 2 . 4 1 . 3 3 5 2 1 1 Energy Gun 22 | . 1 1 . . 9 . 1 . 3 . . 2 1 3 1 . . Energy Cannon 3 | . . . . . . . . . . . . . 2 . . 1 . Ballistic Gun 3 | 2 . . . 1 . . . . . . . . . . . . . Ballistic Cannon 2 | . . . . . . . . . . 1 . 1 . . . . . Launcher 3 | . 1 . . . 1 . . . . . . . . 1 . . . Special Weapon 3 | . . . . . . . . . 1 . . . . . 1 . 1 Impact Weapon 1 | . . . . . 1 . . . . . . . . . . . . Slashing Weapon 1 | . . . . . . . . . . . . . . 1 . . . Piercing Weapon . | . . . . . . . . . . . . . . . . . . Special Melee Weapon 2 | . 1 . . . . . 1 . . . . . . . . . . Unidentified Prototypes 9 | . . . . . 2 . 1 . 2 . . . 2 1 1 . . Corrupted Parts 3 | . . . . 2 . . . . . . . . . . . . 1 System Corruption 6 | . . . . 2 . . . . . . . . . . . . 4 Parts Lost 89 | . 1 3 . 3 . 11 1 . . 2 . 10 15 7 1 16 19 Power 11 | . . 1 . . . 2 . . . . . 1 2 . . 2 3 Propulsion 31 | . . . . 2 . 2 1 . . . . 4 7 4 . 4 7 Utility 24 | . 1 1 . . . 2 . . . 2 . 3 3 1 1 6 4 Weapon 23 | . . 1 . 1 . 5 . . . . . 2 3 2 . 4 5 Highest Loss Streak 9 | . 1 3 . 2 . 4 1 . . 1 . 6 9 6 1 7 9 To Critical Strikes . | . . . . . . . . . . . . . . . . . . Average Backups 18 | 3 18 22 22 21 18 14 17 18 17 17 18 16 18 18 19 18 17 Power 2 | 1 2 3 3 3 2 2 3 3 2 2 2 1 . 1 1 3 3 Propulsion 1 | 1 1 5 5 4 4 2 2 3 2 2 2 1 1 . . . . Utility 7 | . 3 3 3 3 2 4 8 8 7 7 7 8 8 10 11 11 12 Weapon 5 | . 10 10 10 10 8 4 2 3 4 5 6 5 6 5 6 2 1 Tool/Special . | . . . . . . . . . . . . . . . . . . Unused Backups 62 | 3 8 . . . 9 . 3 . 2 2 1 4 9 2 2 4 13 Power 14 | . 3 . . . 1 . 1 . 1 2 1 . 1 1 1 . 2 Propulsion 5 | 3 . . . . . . . . . . . . 2 . . . . Utility 26 | . 1 . . . . . 2 . 1 . . 4 2 1 . 4 11 Weapon 17 | . 4 . . . 8 . . . . . . . 4 . 1 . . Tool/Special . | . . . . . . . . . . . . . . . . . . Average Slot Usage (%) 92 | . 99 99 100 99 99 96 99 100 99 99 100 84 77 94 97 90 81 Engine 6 | . 14 13 14 14 3 2 9 9 7 7 7 7 6 12 1 . . Core 3 | . . . . . 5 6 . . . . . . 3 . 10 10 8 Treads 17 | . 19 14 14 13 27 26 26 27 30 30 30 29 8 . . 7 5 Wheel 2 | . 8 14 14 13 . . . . . . . . 1 . . . . Hover 7 | . . . . . . . . . . . . . 15 24 35 18 14 Device 9 | . 5 13 14 5 12 9 9 9 8 12 15 8 8 6 5 11 2 Storage 7 | . 14 14 14 14 9 9 9 9 7 7 7 7 6 6 5 5 5 Hackware 7 | . . . . . 6 9 9 9 12 9 7 3 6 6 11 13 17 Protection 6 | . 8 . . 8 7 8 9 9 7 6 7 10 4 11 8 2 4 Energy Gun 13 | . 10 13 14 14 22 22 21 25 21 22 23 12 6 12 11 3 3 Energy Cannon 2 | . . . . . . . . . . . . . 3 5 . 8 7 Ballistic Gun 2 | . 17 11 14 14 3 . . . . . . . . . . . . Peak Build Rating 87 | 7 12 12 15 15 34 43 46 46 52 54 54 60 77 73 86 87 72 Average Rating 47 | 5 11 11 13 14 30 36 44 45 50 52 54 53 64 65 81 70 61 On Entrance 40 | . 7 12 12 15 14 34 40 46 46 50 54 54 57 68 72 86 67 Naked Turns . | . . . . . . . . . . . . . . . . . . Heaviest Build 123 | 13 95 94 93 95 102 67 69 69 67 68 68 116 123 87 87 82 81 Greatest Support 104 | 40 40 20 16 40 60 76 84 84 104 104 104 104 91 55 67 67 36 Greatest Overweight (x) 15 | . 5 5 5 5 1 1 1 . . . . 1 7 2 1 2 15 Average Overweight (x) 1 | . 2 4 5 4 . . . . . . . . 2 1 . 1 2 Largest Inventory Capacity 25 | 8 25 25 25 25 25 20 20 20 20 20 20 20 20 20 20 20 20 Average Capacity 20 | 7 20 25 25 25 20 20 20 20 20 20 20 20 20 20 20 20 20 Most Carried 25 | 7 25 25 25 25 25 20 20 20 20 20 20 20 20 20 20 20 19 Average Carried 19 | 3 18 22 23 23 20 16 19 20 19 19 20 17 18 18 19 18 17 Final Capacity 25 | 8 25 25 25 25 20 20 20 20 20 20 20 20 20 20 20 20 20 Final Carried 25 | 5 25 22 25 22 20 20 20 20 20 20 20 17 20 20 20 19 15 Class Distribution -------------------- 27% | Botlord-Skirmisher 20% | Bothacker-Skirmisher 19% | Mutant 11% | Scavenger-Skirmisher 5% | Botlord-Tank 4% | Bothacker-Tank 3% | Botlord-Mutant 3% | Bothacker-Mutant 3% | Skirmisher Dominant Class ---------------- Mutant | -10/Materials Mutant | -10/Mines Mutant | -10/Exiles Mutant | -9/Mines Scavenger-Skirmisher | -8/Materials Mutant | -8/Garrison Bothacker-Skirmisher | -8/Materials Bothacker-Skirmisher | -8/Garrison Bothacker-Skirmisher | -7/Factory Bothacker-Skirmisher | -7/Garrison Bothacker-Skirmisher | -7/Factory Bothacker-Skirmisher | -7/Garrison Botlord-Skirmisher | -6/Factory Bothacker-Tank | -6/Garrison Botlord-Skirmisher | -5/Factory Botlord-Skirmisher | -5/Garrison Botlord-Skirmisher | -5/Factory Resources | -11 -10 -10 -10 -9 -8 -8 -8 -8 -7 -7 -7 -7 -6 -6 -5 -5 -5 ----------- Run | Yrd Mat Min Exi Min Mat Gar Mat Gar Fac Gar Fac Gar Fac Gar Fac Gar Fac Matter Collected 3518 | 300 256 104 . 141 346 254 90 138 182 205 69 86 353 256 . 595 143 Remotely . | . . . . . . . . . . . . . . . . . . Salvage Created 9922 | 114 777 14 . 210 1182 1368 322 259 785 398 155 714 1587 704 . 1017 316 Parts 461 | 11 47 5 . 11 68 53 22 25 27 16 8 32 74 26 . 23 13 Haulers Intercepted 12 | . 2 . . . 3 . 2 . 2 . . . 3 . . . . Recyclers Shooed 1 | . . . . . . . . . 1 . . . . . . . . Parts Field Recycled . | . . . . . . . . . . . . . . . . . . Retrieved Matter . | . . . . . . . . . . . . . . . . . . Parts Self-Destructed . | . . . . . . . . . . . . . . . . . . Prevented . | . . . . . . . . . . . . . . . . . . Kills | -11 -10 -10 -10 -9 -8 -8 -8 -8 -7 -7 -7 -7 -6 -6 -5 -5 -5 ------- Run | Yrd Mat Min Exi Min Mat Gar Mat Gar Fac Gar Fac Gar Fac Gar Fac Gar Fac Combat Hostiles Destroyed 209 | . 16 7 . 9 20 29 6 16 7 13 4 18 27 15 . 16 6 Melee 1 | . . . . . . . . . . . . . . . . . 1 Guns 110 | . 13 . . 7 14 22 6 4 7 9 4 6 6 4 . 7 1 Cannons 37 | . . . . . . . . . . . . 10 19 2 . 5 1 AOE 54 | . 3 7 . 2 5 5 . 11 . 4 . 1 2 8 . 3 3 Classes Destroyed 17 | 2 5 1 . . 5 . . 1 . . . 1 2 . . . . Worker 6 | . . . . . 2 . . . 2 . 1 . 1 . . . . Builder 4 | . . . . . . . . . . . . . 4 . . . . Tunneler 2 | 2 . . . . . . . . . . . . . . . . . Hauler 12 | . 2 . . . 3 . 2 . 2 . . . 3 . . . . Recycler 7 | 1 . . . . . . . . 4 . . . 2 . . . . Operator 3 | . 1 . . . . . 1 . . . . . 1 . . . . Watcher 8 | . 3 . . . 1 1 . . . . 1 . 1 . . 1 . Swarmer 55 | . 3 2 . 6 4 7 4 11 . 7 3 . 4 4 . . . Saboteur 2 | . . . . . . . . . . . . . 1 . . . 1 Grunt 81 | . 13 . . 3 7 19 1 2 5 . . 3 11 9 . 7 1 Brawler 3 | . . . . . . . . . . . . 1 . . . 1 1 Duelist 7 | . . . . . 1 1 . . . . . 3 . . . 1 1 Sentry 29 | . . . . . 5 2 2 1 . 4 . 6 1 2 . 5 1 Specialist 4 | . . . . . 2 . . . . . . . . . . 2 . Hunter 4 | . . . . . 1 . . . . 1 1 1 . . . . . Programmer 20 | . . . . . . . . 2 2 1 . 4 10 . . . 1 Assembled 5 | . . 5 . . . . . . . . . . . . . . . Best Kill Streak 8 | 2 5 5 . 3 5 5 3 7 8 4 3 3 8 8 . 3 3 Combat Bots Only 8 | . 4 5 . 3 4 5 2 7 2 4 3 3 4 8 . 3 3 Max Kills in Single Turn 6 | 1 2 2 . 2 3 2 1 2 2 2 2 1 2 6 . 3 2 Gunslinging 1 | . . . . . . . . . . 1 . . . . . . . Exploded 6 | . 2 2 . 2 3 2 . 2 . 2 . 1 1 6 . 3 2 Melee 1 | . . . . . . . . . . . . . . . . . 1 Uniques/NPCs Destroyed . | . . . . . . . . . . . . . . . . . . Combat | -11 -10 -10 -10 -9 -8 -8 -8 -8 -7 -7 -7 -7 -6 -6 -5 -5 -5 -------- Run | Yrd Mat Min Exi Min Mat Gar Mat Gar Fac Gar Fac Gar Fac Gar Fac Gar Fac Hostile Shots Fired 1363 | . 45 19 . 32 76 100 11 42 21 127 9 269 186 68 . 182 176 Missed 452 | . 11 6 . 15 27 40 2 11 5 52 4 105 54 22 . 52 46 Hits 911 | . 34 13 . 17 49 60 9 31 16 75 5 164 132 46 . 130 130 Melee 15 | . . 2 . . 1 . . . . . . 2 . . . 4 6 Projectile 896 | . 34 11 . 17 48 60 9 31 16 75 5 162 132 46 . 126 124 Critical Strikes 30 | . . . . . 1 1 . 1 1 1 . 5 8 . . 4 8 Part Disruptions 8 | . . 1 . . . . . . . . . 1 1 . . 5 . Damage Taken 14107 | . 384 308 . 219 796 871 117 452 246 749 83 1696 2223 835 153 2111 2864 Core 1995 | . 22 83 . 43 54 81 22 . 33 59 . 224 228 144 . 192 810 Absorbed by Shields 46 | . . . . . . 19 . . . . . . . . . 27 . Regen/Repaired (Parts) 1406 | . . . . . 70 . . . 282 378 . . . . 128 313 235 Core Remaining (%) 64 | 100 . . . 40 . . . 71 . . . 54 . 56 . . . Volleys Fired 577 | 5 46 8 . 23 44 85 22 34 26 34 5 30 82 33 5 60 35 Largest 3 | 2 2 2 . 2 3 3 3 3 3 3 3 3 3 3 1 3 3 Hottest 251 | 40 65 65 . 65 160 177 183 183 197 197 197 220 230 250 5 251 251 Shots Fired 1353 | 10 88 9 . 43 117 188 52 83 73 95 15 117 206 63 5 128 61 Gun 1000 | 10 85 4 . 42 116 177 52 73 72 92 15 78 80 34 . 58 12 Cannon 277 | . . . . . . . . . . . . 39 123 24 . 56 35 Launcher 52 | . 3 5 . 1 1 11 . 10 . 3 . . 1 5 . 8 4 Special 24 | . . . . . . . . . 1 . . . 2 . 5 6 10 Kinetic 192 | 10 47 3 . 22 21 . . . . . . 39 50 . . . . Thermal 743 | . . . . . 1 95 52 73 72 92 15 60 115 53 . 88 27 Explosive 52 | . 3 5 . 1 1 11 . 10 . 3 . . 1 5 . 8 4 Electromagnetic 342 | . 38 1 . 20 94 82 . . . . . 18 38 5 . 26 20 Robot Hit Streak 28 | 3 15 3 . 10 8 28 24 14 25 11 12 23 20 7 2 21 12 Robot Miss Streak 8 | 1 2 2 . 4 8 5 4 2 4 4 3 5 3 4 3 4 3 Penetration Max . | . . . . . . . . . . . . . . . . . . Secondary Targets 11 | . . . . 1 2 5 . . 1 1 1 . . . . . . Max Gunslinging Chain 1 | . . . . 1 1 1 . . 1 1 1 . . . . . . Autonomous 90 | . . . . . . . . . . . . 39 51 . . . . Shots Hit Robots 900 | 6 67 2 . 26 77 133 35 35 53 50 9 103 125 41 2 85 51 Core Hits 552 | 4 42 13 . 14 55 67 13 22 24 37 13 45 66 46 . 59 32 Critical Kills 1 | . . . . . . . . . . . . . . 1 . . . Critical Parts Destroyed . | . . . . . . . . . . . . . . . . . . Critical Strikes 35 | . . . . . 1 9 2 5 4 . 2 8 2 1 . . 1 Burn 25 | . . . . . . 6 2 5 4 . 2 6 . . . . . Meltdown 1 | . . . . . . . . . . . . . . 1 . . . Blast 4 | . . . . . . . . . . . . 2 2 . . . . Corrupt 4 | . . . . . 1 3 . . . . . . . . . . . Sever 1 | . . . . . . . . . . . . . . . . . 1 Melee Attacks 46 | . . . . . 7 9 1 . 4 . . . 5 7 . 4 9 Impact 21 | . . . . . 7 4 1 . 4 . . . 5 . . . . Slashing 20 | . . . . . . . . . . . . . . 7 . 4 9 Piercing . | . . . . . . . . . . . . . . . . . . Sneak Attacks 6 | . . . . . . 5 . . . . . . . . . . 1 Combat Hostiles . | . . . . . . . . . . . . . . . . . . Follow-up Attacks . | . . . . . . . . . . . . . . . . . . Damage Inflicted 29183 | 70 1177 412 . 574 1983 3049 650 1699 1034 1362 194 3939 5882 2329 . 2909 1920 Guns 13448 | 70 996 24 . 355 1373 2425 650 696 1001 1013 185 1182 1469 591 . 1140 278 Cannons 8429 | . . . . . . . . . . . . 2592 3825 257 . 1120 635 Explosions 6404 | . 181 388 . 219 605 624 . 1003 . 349 . 165 588 931 . 649 702 Melee 855 | . . . . . . . . . . . . . . 550 . . 305 Ramming 47 | . . . . . 5 . . . 33 . 9 . . . . . . Kinetic 6184 | 70 441 15 . 127 126 . . . . . . 2592 2813 . . . . Thermal 11602 | . . . . 106 374 1317 650 696 1001 1013 185 1279 1999 764 . 1618 600 Explosive 5525 | . 181 388 . 113 185 509 . 1003 . 349 . . 515 931 . 649 702 Electromagnetic 4970 | . 555 9 . 228 1293 1223 . . . . . 68 555 84 . 642 313 Impact . | . . . . . . . . . . . . . . . . . . Slashing 855 | . . . . . . . . . . . . . . 550 . . 305 Piercing . | . . . . . . . . . . . . . . . . . . Highest Corruption 23 | . . . . 2 . . 1 2 5 5 6 9 4 4 . 3 23 Average Corruption 3 | . . . . 1 . . 1 1 5 5 5 7 2 4 . 2 9 Corruption Purged . | . . . . . . . . . . . . . . . . . . Corruption Blocked . | . . . . . . . . . . . . . . . . . . Effects 262 | . . . . . . . 5 4 13 40 11 23 51 23 . 59 33 Message Errors 71 | . . . . . . . 3 . 3 12 2 9 8 9 . 16 9 Matter Fused 61 | . . . . . . . 1 . 3 10 3 2 13 6 . 15 8 Heat Flow Errors 34 | . . . . . . . . 1 . 3 2 4 8 4 . 9 3 Energy Discharges 28 | . . . . . . . . 1 2 3 3 1 6 2 . 5 5 Parts Rejected 2 | . . . . . . . . . . . . . . 1 . . 1 Parts Fused 3 | . . . . . . . . . . . 1 . . . . 1 1 Data Loss (minor) 31 | . . . . . . . . 1 1 7 . 2 7 . . 10 3 Data Loss (major) 11 | . . . . . . . 1 . 2 2 . 2 2 . . 1 1 Misfires 9 | . . . . . . . . . 1 3 . 1 3 . . 1 . Alerts 5 | . . . . . . . . . . . . 2 2 1 . . . Misdirections 1 | . . . . . . . . . . . . . . . . . 1 Weapon Failures 6 | . . . . . . . . 1 1 . . . 2 . . 1 1 Overload Shots . | . . . . . . . . . . . . . . . . . . Overflow Damage 1567 | . 4 9 . 20 3 4 . 96 . 15 . 523 707 131 . 18 37 Projectiles 1251 | . . . . . . . . . . . . 517 679 . . 18 37 Explosions 200 | . 4 9 . 20 3 4 . 96 . 15 . 6 28 15 . . . Melee 116 | . . . . . . . . . . . . . . 116 . . . Knockbacks 21 | . . . . . . . . . . . . 10 11 . . . . Impact . | . . . . . . . . . . . . . . . . . . Kinetic 20 | . . . . . . . . . . . . 10 10 . . . . Secondary 1 | . . . . . . . . . . . . . 1 . . . . Self-Inflicted Damage 799 | . . 98 . 32 119 50 . 111 . . . 39 123 110 . . 117 Shots 23 | . . 4 . 1 4 2 . 3 . . . 1 2 2 . . 4 Rammed 2 | . . . . . 1 . . . 1 . . . . . . . . Targets Rammed 4 | . . . . . 1 . . . 2 . 1 . . . . . . Kicked . | . . . . . . . . . . . . . . . . . . Crushed 2 | . . . . . . . . . 1 . 1 . . . . . . Highest Temperature 613 | . 147 16 . 273 418 261 120 232 212 388 243 368 385 287 . 304 613 Average Temperature 95 | . 47 7 . 100 96 65 37 63 76 114 114 108 88 106 . 110 177 Received Heat Transfer 3982 | . 213 60 . 78 243 429 9 45 108 126 . 372 481 237 . 675 906 Effects 14 | . . . . . 2 . . . . 1 1 . 2 . . . 8 Shutdowns 7 | . . . . . 1 . . . . . . . 2 . . . 4 Energy Bleed 2 | . . . . . 1 . . . . . . . . . . . 1 Interference 1 | . . . . . . . . . . . 1 . . . . . . Matter Decay 1 | . . . . . . . . . . 1 . . . . . . . Short Circuit 1 | . . . . . . . . . . . . . . . . . 1 Damage (major) 2 | . . . . . . . . . . . . . . . . . 2 Siege Activations . | . . . . . . . . . . . . . . . . . . Martial Activations . | . . . . . . . . . . . . . . . . . . Shielding Activations . | . . . . . . . . . . . . . . . . . . Robots Disrupted 2 | . . . . . . . . . . . . . . . . 1 1 Combat Hostiles 2 | . . . . . . . . . . . . . . . . 1 1 Robots Corrupted 4 | . . . . . 1 2 . . . . . . . . . 1 . Combat Hostiles 4 | . . . . . 1 2 . . . . . . . . . 1 . Parts Fried 17 | . . . . . 5 9 . . . . . . 1 1 . 1 . Impact Corruptions . | . . . . . . . . . . . . . . . . . . Robots Melted 3 | . . . . . . . . 1 . . . 1 . 1 . . . Combat Hostiles 3 | . . . . . . . . 1 . . . 1 . 1 . . . Parts Melted 50 | . . . . . . 3 2 13 5 3 . 6 7 4 . 7 . Heat Transferred 21306 | . . . . 150 400 2502 1480 1628 2059 1573 435 2004 3436 1406 . 3158 1075 Parts Sabotaged . | . . . . . . . . . . . . . . . . . . Parts Stolen . | . . . . . . . . . . . . . . . . . . Parts Stripped . | . . . . . . . . . . . . . . . . . . Power Chain Reactions 11 | . . . . 1 5 2 . . . . . 1 2 . . . . Alert | -11 -10 -10 -10 -9 -8 -8 -8 -8 -7 -7 -7 -7 -6 -6 -5 -5 -5 ------- Run | Yrd Mat Min Exi Min Mat Gar Mat Gar Fac Gar Fac Gar Fac Gar Fac Gar Fac Maximum Alert Level 5 | . . . . . 1 4 3 3 1 2 1 2 2 3 2 5 4 Low Security (%) 34 | 100 100 100 . 100 83 2 . 3 79 18 22 21 28 . . . . Level 1 26 | . . . . . 16 11 53 34 20 48 77 53 67 5 . 2 . Level 2 15 | . . . . . . 38 25 38 . 32 . 25 3 47 100 16 . Level 3 14 | . . . . . . 26 21 22 . . . . . 46 . 35 90 Level 4 5 | . . . . . . 20 . . . . . . . . . 21 9 Level 5 3 | . . . . . . . . . . . . . . . . 23 . High Security . | . . . . . . . . . . . . . . . . . . Max Security . | . . . . . . . . . . . . . . . . . . Peak Influence 2129 | 5 117 53 . 77 303 1473 804 707 371 575 348 528 498 1093 573 2129 1122 Initial 1117 | . . 30 . . 9 195 717 196 371 4 301 104 277 347 573 324 1117 Average 448 | 1 49 8 . 15 99 788 487 471 95 337 254 310 230 714 517 1121 1024 Influence Increases 9668 | 15 493 73 . 238 733 1388 292 511 250 591 112 524 1279 816 . 2025 328 Destroy 0b10 Robot/C 4300 | . 320 40 . 180 400 580 180 320 140 260 80 360 560 440 . 320 120 Destroy 0b10 Robot/NC 235 | 15 30 . . . 30 10 15 . 40 . 10 . 60 20 . 5 . Destroy Leader 666 | . 80 10 . 30 98 30 54 40 34 30 22 40 148 20 . 20 10 Allied During Kill 64 | . . . . . . . 15 . . . . . 5 44 . . . Successful Hack 143 | . 5 . . . 34 . 12 12 . 12 . . 40 . . 28 . Disable Machine 270 | . . . . . 105 . . . . . . . 135 . . 15 15 Anti-Garrison Action 2450 | . . . . . . 600 . 50 . 250 . 100 . 150 . 1300 . Destroy Structure 640 | . 28 23 . 13 21 63 1 74 6 39 . 9 121 82 . 82 78 Lose Combat Pursuer 900 | . 30 . . 15 45 105 15 15 30 . . 15 210 60 . 255 105 Influence Decreases 8809 | 15 414 147 5 214 456 216 1462 107 951 22 538 145 1310 220 630 359 1598 Entered New Map 3767 | . . 49 5 . 15 106 756 107 336 2 274 45 251 150 520 139 1012 Time Decay 3402 | 15 404 85 . 194 434 . 356 . 465 . 254 . 739 . 100 . 356 Lost Part 843 | . 10 13 . 20 . 110 10 . . 20 . 100 130 70 10 160 190 Lost Ally 190 | . . . . . . . 40 . . . 10 . 40 . . 60 40 Purge Threat 607 | . . . . . 7 . 300 . 150 . . . 150 . . . . Squads Dispatched 27 | . 3 . . . 2 . 1 . 3 . 1 . 12 . . . 5 Investigation 4 | . 2 . . . . . 1 . . . . . 1 . . . . Extermination 13 | . . . . . . . . . 2 . 1 . 9 . . . 1 Reinforcement 6 | . 1 . . . 1 . . . 1 . . . 2 . . . 1 Assault 2 | . . . . . . . . . . . . . . . . . 2 Garrison 2 | . . . . . 1 . . . . . . . . . . . 1 Intercept . | . . . . . . . . . . . . . . . . . . Searches Triggered . | . . . . . . . . . . . . . . . . . . Construction Impeded . | . . . . . . . . . . . . . . . . . . Haulers Reinforced 4 | . . . . . . . . . 1 . . . 2 . . . 1 Active Scanning Responses . | . . . . . . . . . . . . . . . . . . Cargo Convoy Interrupts 1 | . . . . . . . . . . . . . 1 . . . . Alert ID Control Effect 3 | . . . . . . . . . . . . . . . . 2 1 Stealth | -11 -10 -10 -10 -9 -8 -8 -8 -8 -7 -7 -7 -7 -6 -6 -5 -5 -5 --------- Run | Yrd Mat Min Exi Min Mat Gar Mat Gar Fac Gar Fac Gar Fac Gar Fac Gar Fac Distress Signals 20 | . 2 . . . 6 4 3 . 1 . 1 . 2 . . 1 . Communications Jammed . | . . . . . . . . . . . . . . . . . . Distress Signals . | . . . . . . . . . . . . . . . . . . Times Spotted 314 | . 21 8 . 8 34 41 20 11 10 13 6 18 44 25 . 29 26 Peak Tracking Total 12 | . 3 5 . 3 4 6 6 4 4 5 3 4 6 8 . 12 5 Tactical Retreats 34 | . 1 . . 1 2 5 1 1 1 . . 1 7 3 . 6 5 Traps | -11 -10 -10 -10 -9 -8 -8 -8 -8 -7 -7 -7 -7 -6 -6 -5 -5 -5 ------- Run | Yrd Mat Min Exi Min Mat Gar Mat Gar Fac Gar Fac Gar Fac Gar Fac Gar Fac Traps Triggered 27 | . 2 . . . . 3 3 1 . . 1 3 2 4 1 7 . Indirectly . | . . . . . . . . . . . . . . . . . . Trap Hack Attempts 36 | . 35 . . . . . 1 . . . . . . . . . . Triggered . | . . . . . . . . . . . . . . . . . . Disarmed 1 | . . . . . . . 1 . . . . . . . . . . Reprogrammed 2 | . 2 . . . . . . . . . . . . . . . . Reused . | . . . . . . . . . . . . . . . . . . Traps Extracted . | . . . . . . . . . . . . . . . . . . Installed . | . . . . . . . . . . . . . . . . . . Triggered . | . . . . . . . . . . . . . . . . . . Machines | -11 -10 -10 -10 -9 -8 -8 -8 -8 -7 -7 -7 -7 -6 -6 -5 -5 -5 ---------- Run | Yrd Mat Min Exi Min Mat Gar Mat Gar Fac Gar Fac Gar Fac Gar Fac Gar Fac Machines Disabled 32 | . . . . . 7 3 . 1 . 3 . 2 9 1 . 5 1 Max in Single Turn 5 | . . . . . 2 1 . 1 . 1 . 1 5 1 . 1 1 Garrison Access 1 | . . . . . . . . . . . . . 1 . . . . Garrison Relay 14 | . . . . . . 3 . 1 . 3 . 2 . 1 . 4 . Phase Generator 1 | . . . . . . . . . . . . . . . . 1 . Machines Repaired . | . . . . . . . . . . . . . . . . . . Machines Dismantled . | . . . . . . . . . . . . . . . . . . Machines Sabotaged . | . . . . . . . . . . . . . . . . . . Overloaded Fab Kills . | . . . . . . . . . . . . . . . . . . Hacking | -11 -10 -10 -10 -9 -8 -8 -8 -8 -7 -7 -7 -7 -6 -6 -5 -5 -5 --------- Run | Yrd Mat Min Exi Min Mat Gar Mat Gar Fac Gar Fac Gar Fac Gar Fac Gar Fac Machines Accessed 45 | . 5 . 1 . 7 1 8 1 4 2 1 2 8 . 2 2 1 Terminals 34 | . 5 . . . 5 1 7 1 2 2 . 2 5 . 1 2 1 Fabricators . | . . . . . . . . . . . . . . . . . . Repair Stations 2 | . . . . . 1 . . . . . . . 1 . . . . Recycling Units 1 | . . . . . . . . . 1 . . . . . . . . Scanalyzers . | . . . . . . . . . . . . . . . . . . Garrison Access 7 | . . . . . 1 . 1 . 1 . 1 . 2 . 1 . . Total Hacks 97 | . 11 . 1 . 24 3 21 1 8 2 1 2 16 . 3 3 1 Successful 56 | . 6 . 1 . 17 . 11 1 6 1 1 . 8 . 1 2 1 Failed 40 | . 4 . . . 7 3 10 . 2 1 . 2 8 . 2 1 . Catastrophic 10 | . 1 . . . 1 . 2 . . 1 . 1 2 . 1 1 . Database Lockouts 1 | . 1 . . . . . . . . . . . . . . . . Manual 56 | . 9 . 1 . 13 . 11 . 5 . . . 14 . 2 1 . Terminals 83 | . 11 . . . 19 3 20 1 6 2 . 2 13 . 2 3 1 Fabricators . | . . . . . . . . . . . . . . . . . . Repair Stations 5 | . . . . . 4 . . . . . . . 1 . . . . Recycling Units 1 | . . . . . . . . . 1 . . . . . . . . Scanalyzers . | . . . . . . . . . . . . . . . . . . Garrison Access 7 | . . . . . 1 . 1 . 1 . 1 . 2 . 1 . . Terminal Hacks 27 | . 5 . 1 . 8 . 4 1 1 1 . . 3 . . 2 1 Robot Analysis 4 | . 2 . . . 2 . . . . . . . . . . . . Open DSF 1 | . . . . . . . . . . . . . . . . . 1 Emergency Access Points 2 | . . . . . . . . . . 1 . . . . . 1 . Alert Level 1 | . . . . . 1 . . . . . . . . . . . . Unreport Threat 6 | . 1 . . . 1 . 2 . 1 . . . 1 . . . . Locate Traps 2 | . 2 . . . . . . . . . . . . . . . . Transport Status 1 | . . . . . . . . . . . . . 1 . . . . Recall Investigation 1 | . . . . . . . 1 . . . . . . . . . . Recall Assault 1 | . . . . . 1 . . . . . . . . . . . . Hauler Manifests 3 | . . . . . 2 . . . . . . . 1 . . . . Zone Layout 2 | . . . . . 1 . 1 . . . . . . . . . . Garrison Registry 1 | . . . . . . . . 1 . . . . . . . . . Patrol Navigation 1 | . . . . . . . . . . . . . . . . 1 . Proto ID Catalog 1 | . . . 1 . . . . . . . . . . . . . . Fabricator Hacks . | . . . . . . . . . . . . . . . . . . Repair Station Hacks 2 | . . . . . 2 . . . . . . . . . . . . Scan Component 1 | . . . . . 1 . . . . . . . . . . . . Repair 1 | . . . . . 1 . . . . . . . . . . . . Recycling Unit Hacks 1 | . . . . . . . . . 1 . . . . . . . . Retrieve Components 1 | . . . . . . . . . 1 . . . . . . . . Scanalyzer . | . . . . . . . . . . . . . . . . . . Garrison Access Hacks 7 | . . . . . 1 . 1 . 1 . 1 . 2 . 1 . . Unlock Access 6 | . . . . . 1 . 1 . 1 . 1 . 1 . 1 . . Seal Access 1 | . . . . . . . . . . . . . 1 . . . . Unauthorized Hacks 19 | . 1 . . . 6 . 6 . 3 . . . 3 . . . . Terminals 18 | . 1 . . . 6 . 6 . 3 . . . 2 . . . . Botnet 5 | . 1 . . . 1 . 1 . 1 . . . 1 . . . . Skim 13 | . . . . . 5 . 5 . 2 . . . 1 . . . . Fabricators . | . . . . . . . . . . . . . . . . . . Repair Stations 1 | . . . . . . . . . . . . . 1 . . . . Mechanics 1 | . . . . . . . . . . . . . 1 . . . . Recycling Units . | . . . . . . . . . . . . . . . . . . Scanalyzers . | . . . . . . . . . . . . . . . . . . Garrison Access . | . . . . . . . . . . . . . . . . . . Data Cores Recovered 1 | . . . . . . . 1 . . . . . . . . . . Used . | . . . . . . . . . . . . . . . . . . Hacking Detections 35 | . 5 . . . 5 1 8 1 4 1 . 2 6 . 1 1 . Full Trace Events 1 | . . . . . . 1 . . . . . . . . . . . Feedback Events . | . . . . . . . . . . . . . . . . . . Feedback Blocked . | . . . . . . . . . . . . . . . . . . Robot Schematics Acquired . | . . . . . . . . . . . . . . . . . . Robots Built . | . . . . . . . . . . . . . . . . . . Authchips . | . . . . . . . . . . . . . . . . . . Time . | . . . . . . . . . . . . . . . . . . Total Robot Build Rating . | . . . . . . . . . . . . . . . . . . Part Schematics Acquired . | . . . . . . . . . . . . . . . . . . Parts Built . | . . . . . . . . . . . . . . . . . . Authchips . | . . . . . . . . . . . . . . . . . . Time . | . . . . . . . . . . . . . . . . . . Total Part Build Rating . | . . . . . . . . . . . . . . . . . . Parts Repaired 1 | . . . . . 1 . . . . . . . . . . . . Time 26 | . . . . . 26 . . . . . . . . . . . . Parts Recycled . | . . . . . . . . . . . . . . . . . . Recycled Matter . | . . . . . . . . . . . . . . . . . . Retrieved Matter . | . . . . . . . . . . . . . . . . . . Retrieved Components 2 | . . . . . . . . . 2 . . . . . . . . Parts Scanalyzed . | . . . . . . . . . . . . . . . . . . Part Schematics Acquired . | . . . . . . . . . . . . . . . . . . Parts Damaged . | . . . . . . . . . . . . . . . . . . Bothacking | -11 -10 -10 -10 -9 -8 -8 -8 -8 -7 -7 -7 -7 -6 -6 -5 -5 -5 ------------ Run | Yrd Mat Min Exi Min Mat Gar Mat Gar Fac Gar Fac Gar Fac Gar Fac Gar Fac Used RIF Installer 8 | . . . . . . 1 . 1 . 2 . 2 . 1 . 1 . Hotswap 1 | . . . . . . . . 1 . . . . . . . . . Command Fork 1 | . . . . . . . . . . . . 1 . . . . . Zone Cloak 1 | . . . . . . . . . . . . . . . . 1 . Watcher Feeds 1 | . . . . . . . . . . . . 1 . . . . . Patrol Navigation 1 | . . . . . . . . . . 1 . . . . . . . Alert ID Control 1 | . . . . . . . . . . . . . . 1 . . . Program Shield 1 | . . . . . . . . . . 1 . . . . . . . Robots Hacked 10 | . . . . . . . . . 1 . . . 2 . 1 2 4 Non-combat 3 | . . . . . . . . . 1 . . . . . 1 . 1 Combat 7 | . . . . . . . . . . . . . 2 . . 2 3 Robot Hacks Applied 10 | . . . . . . . . . 1 . . . 2 . 1 2 4 parse_system 1 | . . . . . . . . . . . . . . . . . 1 reboot_system 2 | . . . . . . . . . . . . . . . . 1 1 formatsys_low 3 | . . . . . . . . . 1 . . . . . 1 . 1 formatsys_high 4 | . . . . . . . . . . . . . 2 . . 1 1 Relay Couplers Released 53 | . . . . . . 11 . 4 . 12 . 7 . 3 . 16 . Machine Destruction 53 | . . . . . . 11 . 4 . 12 . 7 . 3 . 16 . Attached 8 | . . . . . . . . . 1 . . . 2 . 1 3 1 Fabnet Peak Effective % . | . . . . . . . . . . . . . . . . . . Robots Rewired 4 | . . . . . . 3 . . . . . . . . . 1 . Allies Hacked . | . . . . . . . . . . . . . . . . . . Hacks Repelled . | . . . . . . . . . . . . . . . . . . Allies | -11 -10 -10 -10 -9 -8 -8 -8 -8 -7 -7 -7 -7 -6 -6 -5 -5 -5 -------- Run | Yrd Mat Min Exi Min Mat Gar Mat Gar Fac Gar Fac Gar Fac Gar Fac Gar Fac Total Allies 13 | . . . . . . 3 . . 1 . . . 2 2 1 2 2 Largest Group 3 | . . . . . . 3 3 . 1 1 1 . 2 2 3 2 3 Highest-Rated Group 189 | . . . . . . 15 15 . 23 23 23 . 81 175 189 108 53 Highest-Rated Ally 95 | . . . . . . 5 5 . 23 23 23 . 41 95 95 95 30 Total Orders 45 | . . . . . . . . . 8 12 1 . . . 2 19 3 STAY 25 | . . . . . . . . . 2 8 . . . . . 13 2 FOLLOW 10 | . . . . . . . . . 3 2 1 . . . 1 3 . AID 10 | . . . . . . . . . 3 2 . . . . 1 3 1 Ally Attacks 95 | . . . . . . . 46 . . . . . 8 22 . 16 3 Total Damage 1774 | . . . . . . . 186 . . . . . 221 1107 . 180 80 Kills 14 | . . . . . . . 3 . . . . . 1 7 . 2 1 Allies Corrupted . | . . . . . . . . . . . . . . . . . . Allies Melted . | . . . . . . . . . . . . . . . . . . Intel | -11 -10 -10 -10 -9 -8 -8 -8 -8 -7 -7 -7 -7 -6 -6 -5 -5 -5 ------- Run | Yrd Mat Min Exi Min Mat Gar Mat Gar Fac Gar Fac Gar Fac Gar Fac Gar Fac Active Infowar (turns) 5643 | 36 636 555 391 430 876 . . . . . . . 2719 . . . . Traps 2328 | . . . . . . . . . . . . . 2328 . . . . Seismic 2924 | 36 636 555 391 430 876 . . . . . . . . . . . . Triangulation 975 | . . . . . . . . . . . . . 975 . . . . ECM 139 | . . . . . 139 . . . . . . . . . . . . Robot Analysis Total 4 | . 2 . . . 2 . . . . . . . . . . . . Derelict Logs Recovered 2 | . . 1 . 1 . . . . . . . . . . . . . Drone Launches . | . . . . . . . . . . . . . . . . . . Drone Recoveries . | . . . . . . . . . . . . . . . . . . Exploration | -11 -10 -10 -10 -9 -8 -8 -8 -8 -7 -7 -7 -7 -6 -6 -5 -5 -5 ------------- Run | Yrd Mat Min Exi Min Mat Gar Mat Gar Fac Gar Fac Gar Fac Gar Fac Gar Fac Turns Passed 23816 | 134 1580 564 391 1048 2316 2276 811 614 1233 1645 542 920 3985 1371 218 3358 810 Spaces Moved 11273 | 64 772 295 223 556 846 1096 312 283 606 924 302 378 2078 694 264 1355 225 Core 6 | 2 . . . . . . . . . . . . . . . . 4 Treads 5509 | 62 315 1 . 1 846 1096 312 283 606 924 302 378 366 . . . 17 Legs 3 | . . . . . . . . . . . . . . . . . 3 Wheels 1977 | . 457 294 223 555 . . . . . . . . 448 . . . . Hover 3778 | . . . . . . . . . . . . . 1264 694 264 1355 201 Flight . | . . . . . . . . . . . . . . . . . . Fastest Speed 50 | 50 160 175 175 175 160 160 160 160 162 162 162 162 122 118 54 54 234 Average Speed 178 | 156 169 176 175 175 213 173 161 160 162 162 162 199 167 155 71 222 294 Slowest Speed 800 | 160 320 480 175 320 240 240 240 160 162 162 162 245 400 195 119 254 800 Overloaded Moves . | . . . . . . . . . . . . . . . . . . Propulsion Burnouts . | . . . . . . . . . . . . . . . . . . Robots Hopped . | . . . . . . . . . . . . . . . . . . Potential Cave-ins . | . . . . . . . . . . . . . . . . . . Cave-ins Triggered . | . . . . . . . . . . . . . . . . . . Exploration Rate (%) 46 | 4 98 63 43 84 51 81 32 41 9 73 9 48 44 43 12 89 4 Regions Visited 17 Branch Regions 3 Pre-discovered Areas 3 | . . . . . 3 . . . . . . . . . . . . Known Exits Taken 6 | . . . . . 1 . 1 . 1 . 1 . 1 . 1 . . Unknown Exits Taken 5 | 1 1 1 1 1 . . . . . . . . . . . . . Scrap Searched 2 | . . 1 . 1 . . . . . . . . . . . . . Spaces Dug 163 | . 18 29 . 7 15 16 1 25 4 4 . . 26 18 . . . Terrain Destroyed 526 | . 27 32 . 13 23 50 1 57 4 9 . 6 137 65 . 48 54 Melee 19 | . . . . . 7 2 1 . 4 . . . 5 . . . . Projectile 60 | . . . . . . . . . . . . . 54 . . . 6 AOE 447 | . 27 32 . 13 16 48 . 57 . 9 . 6 78 65 . 48 48 Terrain Rammed . | . . . . . . . . . . . . . . . . . . Walls Destroyed . | . . . . . . . . . . . . . . . . . . Machines Disabled . | . . . . . . . . . . . . . . . . . . Actions | -11 -10 -10 -10 -9 -8 -8 -8 -8 -7 -7 -7 -7 -6 -6 -5 -5 -5 --------- Run | Yrd Mat Min Exi Min Mat Gar Mat Gar Fac Gar Fac Gar Fac Gar Fac Gar Fac Total 13849 | 86 963 329 224 586 1258 1299 575 374 792 1001 344 483 2449 917 290 1572 307 Wait 1379 | . 60 21 . 1 290 78 221 49 133 29 34 47 206 113 5 68 24 Move 11259 | 63 771 294 222 555 846 1095 311 282 605 923 302 377 2078 693 263 1354 225 Hop . | . . . . . . . . . . . . . . . . . . Pick Up 151 | 8 29 . 1 . 19 12 5 1 5 4 1 7 31 9 4 15 . Fast Attach 49 | 7 . . . . 6 . 1 . 4 2 . 2 9 5 4 4 5 Attach 75 | . 1 3 . 3 4 12 1 . 2 2 . 8 14 6 2 13 4 Detach 11 | . . . . . . 1 . . . . . 4 2 . 1 2 1 Swap 84 | . 10 3 1 4 15 3 6 7 4 3 . . 5 6 1 13 3 Drop 96 | 3 11 . . . 26 1 6 1 7 4 1 4 17 6 5 4 . Fire 577 | 5 46 8 . 23 44 85 22 34 26 34 5 30 82 33 5 60 35 Melee 46 | . . . . . 7 9 1 . 4 . . . 5 7 . 4 9 Ram . | . . . . . . . . . . . . . . . . . . Kick . | . . . . . . . . . . . . . . . . . . Crush 4 | . . . . . 1 . . . 2 . 1 . . . . . . Escape Stasis 81 | . . . . . . 3 . . . . . 4 . 39 . 35 . Rewire 1 | . . . . . . . . . . . . . . . . . 1 Trap 36 | . 35 . . . . . 1 . . . . . . . . . . Miscellaneous . | . . . . . . . . . . . . . . . . . . Route ------- -11/Scrapyard -10/Materials (discovered 5 exits: [*Mat x3] / [*Min] / [*Sub]) -10/Mines (discovered 4 exits: [*Mat x2] / *Exi / [*Sub]) -10/Exiles -9/Mines -8/Materials (discovered 4 exits: Fac x3 / Gar) -8/Garrison (discovered 4 exits: *Fac x3 / *Mat) -8/Materials (discovered 4 exits: *Fac x3 / Gar) -8/Garrison (discovered 3 exits: *Fac x3) -7/Factory -7/Garrison (discovered 3 exits: *Fac x3) -7/Factory (discovered 2 exits: [*Low] / Gar) -7/Garrison -6/Factory -6/Garrison (discovered 2 exits: *Fac x2) -5/Factory -5/Garrison (discovered 3 exits: *Fac x3) -5/Factory History --------- Turn | Location | Event 15 | -11/Scrapyard | Discovered new exit (range 16) 135 | -11/Scrapyard | Entered Materials 311 | -10/Materials | Build established: Mutant 673 | -10/Materials | Discovered new exit (range 13) 928 | -10/Materials | Central database locked down 942 | -10/Materials | Discovered new exit (range 11) 1149 | -10/Materials | Discovered new exit (range 7) 1310 | -10/Materials | Discovered new exit (range 3) 1703 | -10/Materials | Discovered new exit (range 7) 1715 | -10/Materials | Entered Mines 1715 | -10/Mines | Discovered new exit (range 9) 1720 | -10/Mines | Assembled infested the area 1852 | -10/Mines | Lost 3 parts (1p1u1w) 1860 | -10/Mines | Discovered new exit (range 13) 2153 | -10/Mines | Discovered new exit (range 13) 2205 | -10/Mines | Learned 4 Materials zone layouts 2216 | -10/Mines | Deemed a non-threat by the Exiles lab entrance 2217 | -10/Mines | Discovered new exit (range 5) 2279 | -10/Mines | Entered Exiles 2323 | -10/Exiles | Met 8R-AWN 2353 | -10/Exiles | Met EX-HEX 2405 | -10/Exiles | Met EX-BIN 2426 | -10/Exiles | Aligned with FarCom system 2428 | -10/Exiles | Given EX-Vault access code 2468 | -10/Exiles | Opened EX-Vault 2486 | -10/Exiles | Found AWS/Autocannon 2525 | -10/Exiles | Warned to stay clear of 0b10 Research branches 2642 | -10/Exiles | Discovered new exit (range 14) 2670 | -10/Exiles | Left Exiles lab with AWS/Autocannon 2670 | -10/Exiles | Entered Mines 2844 | -9/Mines | Learned location of 1 exit from Materials 2947 | -9/Mines | Found a hidden stash of uninstalled traps 3285 | -9/Mines | Discovered new exit (range 7) 3594 | -9/Mines | Core integrity fell below 50% 3718 | -9/Mines | Entered Materials 3718 | -8/Materials | Evolved 4 slots: Propulsion x1, Utility x2, Weapon x1 3719 | -8/Materials | Identified exit to Factory 4011 | -8/Materials | Build established: Scavenger-Skirmisher 4233 | -8/Materials | Repaired Lgt. Armor Plating 4501 | -8/Materials | Discovered exit to Factory (range 23) 5473 | -8/Materials | Learned location of 1 exit from Recycling 5543 | -8/Materials | Learned location of Zion (-6) 5652 | -8/Materials | Learned 4 Factory zone layouts 5720 | -8/Materials | Learned location of 2 exits from Lower Caves 5740 | -8/Materials | Learned 4 Recycling zone layouts 5768 | -8/Materials | Learned 2 Storage zone layouts 5804 | -8/Materials | Learned Storage emergency access door positions 5902 | -8/Materials | Learned Factory fabricator intel 5937 | -8/Materials | Garrison activated, responded to threat 6034 | -8/Materials | Identified exit to Garrison 6034 | -8/Materials | Entered Garrison 6189 | -8/Garrison | Garrison Relay disabled 6593 | -8/Garrison | Lost 4 parts (2n1u1w) 6671 | -8/Garrison | Discovered exit to Factory (range 10) 6828 | -8/Garrison | Triggered checkpoint 6846 | -8/Garrison | Build established: Mutant 7004 | -8/Garrison | Triggered checkpoint 7054 | -8/Garrison | Triggered checkpoint 7135 | -8/Garrison | Discovered exit to Factory (range 13) 7190 | -8/Garrison | Triggered checkpoint 7404 | -8/Garrison | Garrison Relay disabled 7567 | -8/Garrison | Build established: Skirmisher 7670 | -8/Garrison | Triggered checkpoint 7935 | -8/Garrison | Discovered exit to Factory (range 11) 7960 | -8/Garrison | Triggered checkpoint 8049 | -8/Garrison | Installed Relay Interface Framework 8076 | -8/Garrison | Garrison Relay disabled 8282 | -8/Garrison | Discovered new exit (range 8) 8310 | -8/Garrison | Entered Materials 8310 | -8/Materials | Accompanied by 3 allies 8388 | -8/Materials | Build established: Bothacker-Mutant 8650 | -8/Materials | Discovered exit to Factory (range 16) 8722 | -8/Materials | Build established: Bothacker-Skirmisher 8926 | -8/Materials | Identified exit to Garrison 8964 | -8/Materials | Learned Factory trap positions 9028 | -8/Materials | Learned 2 Storage zone layouts 9121 | -8/Materials | Entered Garrison 9145 | -8/Garrison | Discovered exit to Factory (range 68) 9145 | -8/Garrison | Discovered exit to Factory (range 107) 9145 | -8/Garrison | Discovered exit to Factory (range 70) 9205 | -8/Garrison | Garrison Relay disabled 9308 | -8/Garrison | Triggered checkpoint 9519 | -8/Garrison | Destroyed 7 combat bots 9711 | -8/Garrison | Expanded RIF knowledge: Hotswap 9735 | -8/Garrison | Entered Factory 9735 | -7/Factory | Evolved 2 slots: Propulsion x1, Utility x1 9737 | -7/Factory | Loaded intel: 103 trap records 9738 | -7/Factory | Loaded intel: 6 fabricator locations 10947 | -7/Factory | Identified exit to Garrison 10968 | -7/Factory | Entered Garrison 10968 | -7/Garrison | Accompanied by 1 ally 11061 | -7/Garrison | Expanded RIF knowledge: Patrol Navigation 11118 | -7/Garrison | Triggered checkpoint 11169 | -7/Garrison | Garrison Relay disabled 11262 | -7/Garrison | Triggered checkpoint 11272 | -7/Garrison | Triggered checkpoint 11606 | -7/Garrison | Triggered checkpoint 11614 | -7/Garrison | Discovered new exit (range 15) 11815 | -7/Garrison | Expanded RIF knowledge: Program Shield 11826 | -7/Garrison | Discovered new exit (range 12) 11876 | -7/Garrison | Triggered checkpoint 11896 | -7/Garrison | Garrison Relay disabled 12030 | -7/Garrison | Triggered checkpoint 12112 | -7/Garrison | Triggered checkpoint 12119 | -7/Garrison | Garrison Relay disabled 12186 | -7/Garrison | Discovered new exit (range 14) 12218 | -7/Garrison | Triggered checkpoint 12613 | -7/Garrison | Entered Factory 12613 | -7/Factory | Accompanied by 1 ally 12767 | -7/Factory | Discovered new exit (range 6) 13155 | -7/Factory | Identified exit to Garrison 13155 | -7/Factory | Entered Garrison 13267 | -7/Garrison | Triggered checkpoint 13289 | -7/Garrison | Expanded RIF knowledge: Watcher Feeds 13354 | -7/Garrison | Garrison Relay disabled 13357 | -7/Garrison | Lost 4 parts (1p2n1w) 13449 | -7/Garrison | Triggered checkpoint 13487 | -7/Garrison | Garrison Relay disabled 13668 | -7/Garrison | Lost 6 parts (2n3u1w) 13797 | -7/Garrison | Triggered checkpoint 13930 | -7/Garrison | Discovered new exit (range 16) 13972 | -7/Garrison | Build established: Bothacker-Tank 14014 | -7/Garrison | Expanded RIF knowledge: Command Fork 14075 | -7/Garrison | Entered Factory 14075 | -6/Factory | Evolved 2 slots: Power x1, Propulsion x1 14314 | -6/Factory | Build established: Botlord-Tank 15143 | -6/Factory | Build established: Botlord-Skirmisher 15788 | -6/Factory | AWS/Autocannon suddenly broke down 16087 | -6/Factory | Build established: Botlord-Mutant 16152 | -6/Factory | Cargo convoy interrupted 16221 | -6/Factory | Lost 9 parts (1p4n1u3w) 16527 | -6/Factory | Build established: Botlord-Skirmisher 18060 | -6/Factory | Identified exit to Garrison 18060 | -6/Factory | Entered Garrison 18240 | -6/Garrison | Destroyed 8 combat bots 18250 | -6/Garrison | Lost 6 parts (3n1u2w) 18262 | -6/Garrison | Triggered checkpoint 18500 | -6/Garrison | Triggered checkpoint 18620 | -6/Garrison | Build established: Bothacker-Tank 18752 | -6/Garrison | Triggered checkpoint 18789 | -6/Garrison | Garrison Relay disabled 18844 | -6/Garrison | Discovered new exit (range 10) 18874 | -6/Garrison | Found embedded Infiltrators 18951 | -6/Garrison | Triggered checkpoint 19093 | -6/Garrison | Discovered new exit (range 13) 19097 | -6/Garrison | Build established: Botlord-Tank 19279 | -6/Garrison | Expanded RIF knowledge: Alert ID Control 19340 | -6/Garrison | Triggered checkpoint 19431 | -6/Garrison | Entered Factory 19431 | -5/Factory | Accompanied by 2 allies 19431 | -5/Factory | Evolved 2 slots: Propulsion x1, Utility x1 19629 | -5/Factory | Identified exit to Garrison 19649 | -5/Factory | Entered Garrison 19649 | -5/Garrison | Accompanied by 2 allies 19878 | -5/Garrison | Lost 4 parts (1n2u1w) 19927 | -5/Garrison | Lost 7 parts (1p2n1u3w) 20135 | -5/Garrison | Triggered checkpoint 20181 | -5/Garrison | Build established: Botlord-Mutant 20304 | -5/Garrison | Garrison Relay disabled 20505 | -5/Garrison | Build established: Botlord-Skirmisher 21064 | -5/Garrison | Phase Generator disabled 21068 | -5/Garrison | Met a derelict Sapper fleeing the area 21090 | -5/Garrison | Discovered new exit (range 11) 21109 | -5/Garrison | Triggered checkpoint 21133 | -5/Garrison | Triggered checkpoint 21151 | -5/Garrison | Triggered checkpoint 21185 | -5/Garrison | Garrison Relay disabled 21315 | -5/Garrison | Expanded RIF knowledge: Zone Cloak 21488 | -5/Garrison | Garrison Relay disabled 21958 | -5/Garrison | Discovered new exit (range 12) 22047 | -5/Garrison | Garrison Relay disabled 22222 | -5/Garrison | Discovered new exit (range 10) 23007 | -5/Garrison | Entered Factory 23007 | -5/Factory | Accompanied by 1 ally 23307 | -5/Factory | First assault squad dispatched 23522 | -5/Factory | System corruption reached 10% 23767 | -5/Factory | Garrison activated, responded to threat 23780 | -5/Factory | Lost 9 parts (1p3n1u4w) 23781 | -5/Factory | Core integrity fell below 50% 23810 | -5/Factory | Core integrity fell below 20% 23817 | -5/Factory | Destroyed by G-50 Soldier with Heavy Laser Last Messages --------------- 23788_ R-10 Processor collects Imp. Target Analyzer. 23789_ K-01 Serf collects debris. 23790_ Imp. Heat Sink destroyed. 23792_ R-10 Processor collects Corrupted Tesla Rifle. 23794_ M-28 Smith repairs G-50 Soldier Lgt. Angular Momentum Engine. 23795_ R-10 Processor collects Imp. Medium Armor Plating. 23795_ Carbon-fiber Leg destroyed. 23796_ System corrupted: Matter fused (-6). 23797_ K-01 Serf collects debris. 23799_ Relay Coupler [Duelist] destroyed. 23801_ Critical hit (Burn: +37). 23801_ Mic. Fission Core destroyed. 23805_ Critical hit (Burn: +37). 23807_ M-28 Smith destroyed. 23809_ Cmb. Airjet destroyed. 23814_ 084F J7YIGZNB >DOMLPJQVD& Map ----- +----------------------------------------------------+ | ???? """" + !%# ! #? | | ????? """" # =#"" ! #?? | | ?????? """" # #"Y """ #?? | | ?????? """" # #"" """ #??? | | ?????? # # """ #????? | | ???########## # #????? | | ???# # + """ """ #????? | | ???# + # """ """ #????? | | ???# !! # # """ """ #????? | | ???# [! % # # ] #????? | | ???# [! # # #????? | | ???# ! ####### ! #????? | | ???# #??########+########????? | | ???# #??# #??????????? | | ???# #??# #??????????? | | ???######+###??# #??????????? | | ????????# #????# "#??????????? | | ???????## #????# "%#??????????? | | ????????# ##???# "/??????????? | | ???????## ##???# #??????????? | | ???????##*##???# #??????????? | | ???????## ##???#####+#####??????????? | | ???????##%######## #????????????? | | ???????#g!%g ##???????????? | | ???????# =! g Y???????? | | ???????#g= @ *%= #????????????? | | ???????##%#|T##### [ #????????????? | | ????????#+####?????? ##????????????? | | ???????? ???????????#?????????????? | | ??????? ?????????????????????????? | | ??????"" ?????????????????????????? | | ??????"" "?????????????????????????? | | ?????""" G????????????????????????? | | ?????? ""????????????????????????? | | ??????? "gg??????????????????????? | | ?????? ????????????????????????? | | ??????###+#?????????????????????????? | | ????????????????????????????????????? | | ????????????????????????????????????? | | ???????????????Y????????????????????? | | ????????????????????????????????????? | | ????????????????????????????????????? | | ????????????????????????????????????? | | ????????????????????????????????????? | | ????????????????????????????????????? | | ????????????????????????????????????? | | ????????????????????????????????????? | | ????????????????????????????????????? | | ????????????????????????????????????? | | ????????????????????????????????????? | +----------------------------------------------------+ Best States ------------- Heat Dissipation 71 Energy Generation 27 Energy Capacity 480 Matter Stores 300 Matter Capacity 300 Sight Range 16 Terrain Scan Density 10 ECM Strength 1 Base Temperature (-) 100 Armor Coverage 300 Phase Shifting 10 Evasion (%) 54 Recoil Reduction 4 Offensive Hacking 10 Defensive Hacking 14 Relay Coupler Types 4 Relay Coupler Value 95 Authchip Count 4 Item Schematics ----------------- None Robot Schematics ------------------ None Fabricated ------------ Nothing Repaired ---------- Lgt. Armor Plating | 22% | -8/Materials Alien Tech Used ----------------- None Achievements -------------- Factory Defaults Challenges ------------ None Game ------ Seed NetworkRainbowRail Manual? 0 Play Time 02:26:22 Cumulative 57.9 hours Start 2025.07.02 @ 12:47:57 End 2025.07.02 @ 22:10:51 Sessions 5 Manual Loads 0 Difficulty Rogue Special Mode None Game No. 52 Rogue 52 Adventurer 0 Explorer 0 Win Type - Total 1 Types 1/0/0/0/0/0/0/0/0/0 Lore% 38 Gallery% 35 Achievement% 36 Wizard Run 0 Options --------- Layout 1 ASCII 0 Keyboard 1 Movement Arrows Keybinds 0 Fullscreen 1 Font 24/Smallcaps Map View 50x40 Zoom Use 0% Tactical HUD 1 Map Filters NONE Filters NONE Steam 1 RUN: 1b317d0d-9c7e-444f-8909-df6ea75feb1d